lending/lending_fUSD_20251116
["ID","MTS","AMOUNT","RATE_DAILY","PERIOD"]
[394122993,1763310033270,-150.0,0.00049183,30]
[394122994,1763310033315,-189.41192621,0.00049209,30]
[394122995,1763310033361,-152.65065664,0.00049209,30]
[394122996,1763310033408,-150.0,0.00049225,30]
[394122997,1763310033454,-150.0,0.0004926,30]
[394122998,1763310033502,-1338.2,0.00049278,120]
[394122999,1763310033546,-150.0,0.0004929,30]
[394123000,1763310033589,-150.0,0.0004929,30]
[394123001,1763310033630,-530.0,0.000493,120]
[394123002,1763310033670,-231.28369723,0.00049314,33]
[394123003,1763310033709,-500.0,0.00049315,120]
[394123004,1763310033754,-500.0,0.00049315,120]
[394123005,1763310033798,-500.0,0.00049315,120]
[394123006,1763310033842,-537.166402,0.00049315,120]
[394123007,1763310033886,-380.24637901,0.00049315,120]
[394123008,1763310034538,969.49766359,0.00049315,30]
[394123009,1763310034954,188.07684697,0.000379,120]
[394123010,1763310035254,287.832,0.00038244,30]
[394123011,1763310035488,1168.51549024,0.00040664,120]
[394123012,1763310036470,1040.0,0.00049015,30]
[394123013,1763310036519,1040.0,0.00049015,30]
[394123014,1763310036553,1040.0,0.00049015,30]
[394123015,1763310036599,1040.0,0.00049015,30]
[394123016,1763310036633,1040.0,0.00049015,30]
[394123017,1763310036679,1040.0,0.00049015,30]
[394123018,1763310036726,1040.0,0.00049015,30]
[394123019,1763310036777,1040.0,0.00049015,30]
[394123020,1763310036836,1040.0,0.00049015,30]
[394123021,1763310036888,1040.0,0.00049015,30]
[394123022,1763310036937,1040.0,0.00049015,30]
[394123023,1763310036985,1040.0,0.00049015,30]
[394123024,1763310037024,1040.0,0.00049015,30]
[394123025,1763310037063,1040.0,0.00049015,30]
[394123026,1763310037109,1040.0,0.00049015,30]
[394123027,1763310037152,1040.0,0.00049015,30]
[394123028,1763310037223,1040.0,0.00049015,30]
[394123029,1763310037413,1040.0,0.00049015,30]
[394123030,1763310037459,1040.0,0.00049015,30]
[394123031,1763310037494,300.0,0.00043731,118]
[394123032,1763310037532,1040.0,0.00049015,30]
[394123033,1763310037582,1040.0,0.00049015,30]
[394123034,1763310037621,1040.0,0.00049015,30]
[394123035,1763310037670,1040.0,0.00049015,30]
[394123036,1763310037712,1058.94981367,0.00049015,30]
[394123037,1763310038290,150.0,0.00049015,30]
[394123038,1763310038330,150.0,0.00049015,30]
[394123039,1763310038369,150.0,0.00049015,30]
[394123040,1763310038411,154.85574373,0.00049015,30]
[394123041,1763310038642,366.12495402,0.00047228,120]
[394123042,1763310038716,248.42,0.00047228,120]
[394123043,1763310038805,698.61,0.00041445,30]
[394123044,1763310039493,150.0,0.00041445,30]
[394123045,1763310039527,500.0,0.00049015,30]
[394123046,1763310039630,500.0,0.00049015,30]
[394123047,1763310039801,500.0,0.00049015,30]
[394123048,1763310039944,1000000.0,0.00049,120]
[394123049,1763310039996,500.0,0.00049015,30]
[394123050,1763310040231,500.0,0.00049015,30]
[394123051,1763310040393,500.0,0.00049015,30]
[394123052,1763310040449,827.4432997,0.00047228,120]
[394123053,1763310040615,500.0,0.00049015,30]
[394123054,1763310040787,500.0,0.00049015,30]
[394123055,1763310040960,500.0,0.00049015,30]
[394123056,1763310041204,500.0,0.00049015,30]
[394123057,1763310041420,500.0,0.00049015,30]
[394123058,1763310041527,323.67,0.00049315,30]
[394123059,1763310041599,500.0,0.00049015,30]
[394123060,1763310041786,500.0,0.00049015,30]
[394123061,1763310041970,500.0,0.00049015,30]
[394123062,1763310042134,385.69115399,0.00049015,30]
[394123063,1763310043441,150.0,0.00049015,30]
[394123064,1763310043630,150.0,0.00049015,30]
[394123065,1763310043797,150.0,0.00049015,30]
[394123066,1763310043979,166.33719638,0.00049015,30]
[394123067,1763310044271,716610.71210665,0.0004925,120]
[394123068,1763310054218,-309.91624966,0.00046848,120]
[394123069,1763310054254,-500.0,0.00049015,30]
[394123070,1763310054286,-500.0,0.00049015,30]
[394123071,1763310054320,-500.0,0.00049015,30]
[394123072,1763310054351,-500.0,0.00049015,30]
[394123073,1763310054382,-500.0,0.00049015,30]
[394123074,1763310054416,-500.0,0.00049015,30]
[394123075,1763310054448,-384.98560342,0.00049015,30]
[394123076,1763310054483,-500.0,0.00049015,30]
[394123077,1763310054515,-500.0,0.00049015,30]
[394123078,1763310054549,-500.0,0.00049015,30]
[394123079,1763310054581,-500.0,0.00049015,30]
[394123080,1763310054611,-500.0,0.00049015,30]
[394123081,1763310054656,-427.67445404,0.00049015,30]
[394123082,1763310054692,-500.0,0.00049015,30]
[394123083,1763310054725,-500.0,0.00049015,30]
[394123084,1763310054758,-500.0,0.00049015,30]
[394123085,1763310054795,-283389.28789335,0.0004925,120]
[394123086,1763310054829,-150.0,0.0004925,30]
[394123087,1763310055063,1000000.0,0.00049,120]
[394123088,1763310055740,3000.0,0.00049315,30]
[394123089,1763310055776,3000.0,0.00049315,30]
[394123090,1763310055922,3000.0,0.00049315,30]
[394123091,1763310056207,3000.0,0.00049315,30]
[394123092,1763310056508,3000.0,0.00049315,30]
[394123093,1763310056805,3000.0,0.00049315,30]
[394123094,1763310057115,3000.0,0.00049315,30]
[394123095,1763310057416,3000.0,0.00049315,30]
[394123096,1763310057797,3000.0,0.00049315,30]
[394123097,1763310058266,3000.0,0.00049315,30]
[394123098,1763310058358,3000.0,0.00049315,30]
[394123099,1763310058982,3000.0,0.00049315,30]
[394123100,1763310059271,3000.0,0.00049315,30]
[394123101,1763310059555,3000.0,0.00049315,30]
[394123102,1763310059830,3000.0,0.00049315,30]
[394123103,1763310060129,3000.0,0.00049315,30]
[394123104,1763310060348,700.58,0.00041445,30]
[394123105,1763310060427,3000.0,0.00049315,30]
[394123106,1763310060743,3000.0,0.00049315,30]
[394123107,1763310061128,3000.0,0.00049315,30]
[394123108,1763310061406,3000.0,0.00049315,30]
[394123109,1763310061716,3000.0,0.00049315,30]
[394123110,1763310061883,150.0,0.00049315,30]
[394123111,1763310062027,3000.0,0.00049315,30]
[394123112,1763310062295,3000.0,0.00049315,30]
[394123113,1763310062586,3000.0,0.00049315,30]
[394123114,1763310062654,150.0,0.00043427,30]
[394123115,1763310062870,3000.0,0.00049315,30]
[394123116,1763310063160,3000.0,0.00049315,30]
[394123117,1763310063476,3000.0,0.00049315,30]
[394123118,1763310063516,1338.2,0.00045751,120]
[394123119,1763310063803,1338.2,0.00044971,120]
[394123120,1763310064098,1338.2,0.00044192,120]
[394123121,1763310064406,1264.5,0.00043412,30]
[394123122,1763310065517,150.0,0.00043427,30]
[394123124,1763310066424,160.0,0.00049315,30]
[394123125,1763310066460,151.0,0.00049315,30]
[394123126,1763310066497,151.0,0.00049315,30]
[394123127,1763310066533,151.0,0.00049315,30]
[394123128,1763310066567,520.0,0.00049315,30]
[394123129,1763310066601,200.0,0.00049315,30]
[394123130,1763310066635,600.0,0.00049315,30]
[394123131,1763310066669,151.0,0.00049315,30]
[394123132,1763310066703,151.0,0.00049315,30]
[394123133,1763310066743,500.0,0.00047228,120]
[394123134,1763310066777,500.0,0.00047776,120]
[394123135,1763310066841,3000.0,0.00049315,30]
[394123136,1763310066885,500.0,0.00048324,120]
[394123137,1763310066923,151.0,0.00049315,30]
[394123138,1763310066957,160.0,0.00049315,30]
[394123139,1763310066994,151.0,0.00049315,30]
[394123140,1763310067031,156.587,0.00049315,30]
[394123141,1763310067067,435.35278974,0.00049315,30]
[394123142,1763310067103,207.4,0.00049315,30]
[394123143,1763310067142,151.0,0.00049315,30]
[394123144,1763310067178,600.0,0.00049315,30]
[394123145,1763310067212,151.0,0.00049315,30]
[394123146,1763310067247,381.18497193,0.00049315,30]
[394123147,1763310067283,500.0,0.00048872,120]
[394123148,1763310067318,3000.0,0.00049315,30]
[394123149,1763310067357,1000000.0,0.00048,120]
[394123150,1763310067406,3000.0,0.00049315,30]
[394123151,1763310067455,252.1227507,0.00049,120]
[394123152,1763310067501,160.0,0.00049315,30]
[394123153,1763310067535,269.79087463,0.00049315,30]
[394123154,1763310067569,151.0,0.00049315,30]
[394123155,1763310067602,162.380719,0.00049315,30]
[394123156,1763310067661,151.0,0.00049315,30]
[394123157,1763310067703,600.0,0.00049315,30]
[394123158,1763310067740,151.0,0.00049315,30]
[394123159,1763310067783,3000.0,0.00049315,30]
[394123160,1763310067973,3000.0,0.00049315,30]
[394123161,1763310068110,215.0738,0.00049315,30]
[394123162,1763310068150,168.3888056,0.00049315,30]
[394123163,1763310068190,151.0,0.00049315,30]
[394123164,1763310068249,3000.0,0.00049315,30]
[394123165,1763310068288,600.0,0.00049315,30]
[394123166,1763310068325,151.0,0.00049315,30]
[394123167,1763310068361,151.0,0.00049315,30]
[394123168,1763310068400,160.0,0.00049315,30]
[394123169,1763310068529,1175.0,0.00049315,30]
[394123170,1763310068745,223.0315306,0.00049315,30]
[394123171,1763310068796,174.61919141,0.00049315,30]
[394123172,1763310068840,151.0,0.00049315,30]
[394123173,1763310068880,151.0,0.00049315,30]
[394123174,1763310068921,600.0,0.00049315,30]
[394123175,1763310068966,151.0,0.00049315,30]
[394123176,1763310069005,160.0,0.00049315,30]
[394123177,1763310069044,151.0,0.00049315,30]
[394123178,1763310069362,181.08010149,0.00049315,30]
[394123179,1763310069418,156.587,0.00049315,30]
[394123180,1763310069457,151.0,0.00049315,30]
[394123181,1763310069504,151.0,0.00049315,30]
[394123182,1763310069541,160.0,0.00049315,30]
[394123183,1763310069597,231.28369723,0.00049315,30]
[394123184,1763310069703,151.0,0.00049315,30]
[394123185,1763310069740,600.0,0.00049315,30]
[394123186,1763310070132,323.06304198,0.00049315,30]
[394123187,1763310070169,151.0,0.00049315,30]
[394123188,1763310070257,151.0,0.00049315,30]
[394123189,1763310070308,160.0,0.00049315,30]
[394123190,1763310070348,151.0,0.00049315,30]
[394123191,1763310070402,162.380719,0.00049315,30]
[394123192,1763310070446,500.0,0.00049315,30]
[394123193,1763310070716,151.0,0.00049315,30]
[394123194,1763310070753,1000000.0,0.00049,120]
[394123195,1763310070886,239.84119403,0.00049315,30]
[394123196,1763310070921,151.0,0.00049315,30]
[394123197,1763310071007,600.0,0.00049315,30]
[394123198,1763310071042,151.0,0.00049315,30]
[394123199,1763310071077,500.0,0.00049315,30]
[394123200,1763310071117,163.53577298,0.00049315,30]
[394123201,1763310071309,151.0,0.00049315,30]
[394123202,1763310071639,500.0,0.00049315,30]
[394123203,1763310071762,151.0,0.00049315,30]
[394123204,1763310071798,151.0,0.00049315,30]
[394123205,1763310071838,168.3888056,0.00049315,30]
[394123206,1763310071883,248.71531821,0.00049315,30]
[394123207,1763310071919,151.0,0.00049315,30]
[394123208,1763310071954,151.0,0.00049315,30]
[394123209,1763310072178,600.0,0.00049315,30]
[394123210,1763310072229,500.0,0.00049315,30]
[394123211,1763310072353,151.0,0.00049315,30]
[394123212,1763310072474,174.61919141,0.00049315,30]
[394123213,1763310072514,257.91778498,0.00049315,30]
[394123214,1763310072786,600.0,0.00049315,30]
[394123215,1763310072973,151.0,0.00049315,30]
[394123216,1763310073011,500.0,0.00049315,30]
[394123217,1763310073088,267.46074303,0.00049315,30]
[394123218,1763310073124,184.24568943,0.00049315,30]
[394123219,1763310073159,150.0,0.00049315,30]
[394123220,1763310073266,426.30491282,0.00043427,30]
[394123221,1763310073331,151.0,0.00049315,30]
[394123222,1763310073387,600.0,0.00049315,30]
[394123223,1763310073585,151.0,0.00049315,30]
[394123224,1763310073622,500.0,0.00049315,30]
[394123225,1763310073689,277.35679052,0.00049315,30]
[394123226,1763310073934,151.0,0.00049315,30]
[394123227,1763310074005,600.0,0.00049315,30]
[394123228,1763310074160,220.0,0.00049315,30]
[394123229,1763310074201,151.0,0.00049315,30]
[394123230,1763310074240,500.0,0.00049315,30]
[394123231,1763310074315,287.61899177,0.00049315,30]
[394123232,1763310074384,151.0,0.00049315,30]
[394123233,1763310074437,1000000.0,0.00049,120]
[394123234,1763310074530,151.0,0.00049315,30]
[394123235,1763310074609,600.0,0.00049315,30]
[394123236,1763310074752,220.0,0.00049315,30]
[394123237,1763310074789,151.0,0.00049315,30]
[394123238,1763310074826,500.0,0.00049315,30]
[394123239,1763310074900,151.0,0.00049315,30]
[394123240,1763310074938,298.26089446,0.00049315,30]
[394123241,1763310075174,151.0,0.00049315,30]
[394123242,1763310075252,600.0,0.00049315,30]
[394123243,1763310075382,220.0,0.00049315,30]
[394123244,1763310075422,151.0,0.00049315,30]
[394123245,1763310075574,500.0,0.00049315,30]
[394123246,1763310075646,250.0,0.00049315,30]
[394123247,1763310075713,309.29654756,0.00049315,30]
[394123248,1763310075787,151.0,0.00049315,30]
[394123249,1763310075835,600.0,0.00049315,30]
[394123250,1763310076017,500.0,0.00049315,30]
[394123251,1763310076278,250.0,0.00049315,30]
[394123252,1763310076315,151.0,0.00049315,30]
[394123253,1763310076351,559.02144612,0.00049315,30]
[394123254,1763310076386,320.74051982,0.00049315,30]
[394123255,1763310076732,151.0,0.00049315,30]
[394123256,1763310076778,600.0,0.00049315,30]
[394123257,1763310076821,842.94272686,0.00043427,30]
[394123258,1763310076862,500.0,0.00049315,30]
[394123259,1763310076907,500.0,0.00049315,30]
[394123260,1763310076946,250.0,0.00049315,30]
[394123261,1763310076985,151.0,0.00049315,30]
[394123262,1763310077044,332.60791905,0.00049315,30]
[394123263,1763310077083,600.0,0.00049315,30]
[394123264,1763310077203,500.0,0.00049315,30]
[394123265,1763310077245,500.0,0.00049315,30]
[394123266,1763310077287,250.0,0.00049315,30]
[394123267,1763310077324,151.0,0.00049315,30]
[394123268,1763310077575,344.91441206,0.00049315,30]
[394123269,1763310077617,562529.33914551,0.00049,120]
[394123273,1763310281928,745.48,0.00013699,2]
[394123274,1763310290757,-646.04,0.000314,30]
[394123275,1763310290799,-646.04,0.000332,30]
[394123276,1763310290838,-831.649,0.00033985,37]
[394123277,1763310290880,-151.0,0.00035,31]
[394123278,1763310290918,-151.0,0.00035,31]
[394123279,1763310290953,-734.090734,0.00035,31]
[394123280,1763310290988,-734.090734,0.00035,31]
[394123281,1763310291022,-151.0,0.00035,31]
[394123282,1763310291060,-734.090734,0.00035,31]
[394123283,1763310291096,-151.0,0.00035,31]
[394123284,1763310291131,-151.0,0.00035,31]
[394123285,1763310291165,-734.090734,0.00035,31]
[394123286,1763310291202,-151.0,0.00035,31]
[394123287,1763310291498,-151.0,0.00035,31]
[394123288,1763310291531,-151.0,0.00035,31]
[394123289,1763310291563,-151.0,0.00035,31]
[394123290,1763310291597,-270.835263,0.00035,31]
[394123291,1763310291629,-151.0,0.00035,31]
[394123292,1763310291660,-151.0,0.00035,31]
[394123293,1763310291693,-151.0,0.00035,31]
[394123294,1763310291724,-151.0,0.00035,31]
[394123295,1763310291754,-278.86233,0.00035,31]
[394123296,1763310291785,-151.0,0.00035,31]
[394123297,1763310291829,-151.0,0.00035,31]
[394123298,1763310291863,-221.822642,0.00035,31]
[394123299,1763310291898,-690.36492,0.00035,30]
[394123300,1763310291933,-151.0,0.00035,31]
[394123301,1763310291969,-297.850905,0.00035,31]
[394123302,1763310292003,-151.0,0.00035,31]
[394123303,1763310292039,-297.850905,0.00035,31]
[394123304,1763310292074,-690.36492,0.00035,30]
[394123305,1763310292108,-151.0,0.00035,31]
[394123306,1763310292141,-297.850905,0.00035,31]
[394123307,1763310292175,-690.36492,0.00035,30]
[394123308,1763310292208,-151.0,0.00035,31]
[394123309,1763310292239,-297.850905,0.00035,31]
[394123310,1763310292272,-690.36492,0.00035,30]
[394123311,1763310292303,-4415.995584,0.00035,31]
[394123312,1763310292339,-4415.995584,0.00035,31]
[394123313,1763310292370,-4415.995584,0.00035,31]
[394123314,1763310292402,-4415.995584,0.00035,31]
[394123315,1763310292435,-151.0,0.00035,31]
[394123316,1763310292470,-151.0,0.00035,31]
[394123317,1763310292504,-151.0,0.00035,31]
[394123318,1763310292536,-151.0,0.00035,31]
[394123319,1763310292571,-151.0,0.00035,31]
[394123320,1763310292609,-286.424994,0.00035,31]
[394123321,1763310292644,-151.0,0.00035,31]
[394123322,1763310292678,-151.0,0.00035,31]
[394123323,1763310292712,-151.0,0.00035,31]
[394123324,1763310292746,-151.0,0.00035,31]
[394123325,1763310292781,-151.0,0.00035,31]
[394123326,1763310292814,-153.912312,0.00035,31]
[394123327,1763310292848,-153.912312,0.00035,31]
[394123328,1763310292882,-153.912312,0.00035,31]
[394123329,1763310292918,-153.912312,0.00035,31]
[394123330,1763310292954,-206.146785,0.00035,31]
[394123331,1763310292988,-225.032242,0.00035,31]
[394123332,1763310293023,-206.146785,0.00035,31]
[394123333,1763310293058,-151.0,0.00035,31]
[394123334,1763310293090,-151.0,0.00035,31]
[394123335,1763310293123,-206.146785,0.00035,31]
[394123336,1763310293156,-239.761031,0.00035,31]
[394123337,1763310293189,-151.0,0.00035,31]
[394123338,1763310293223,-239.761031,0.00035,31]
[394123339,1763310293256,-206.146785,0.00035,31]
[394123340,1763310293291,-151.0,0.00035,31]
[394123341,1763310293324,-239.761031,0.00035,31]
[394123342,1763310293357,-177.911794,0.00035,31]
[394123343,1763310293395,-239.761031,0.00035,31]
[394123344,1763310293431,-177.911794,0.00035,31]
[394123345,1763310293468,-151.0,0.00035,31]
[394123346,1763310293504,-177.911794,0.00035,31]
[394123347,1763310293539,-151.0,0.00035,31]
[394123348,1763310293571,-177.911794,0.00035,31]
[394123349,1763310293603,-646.04,0.000351,30]
[394123350,1763310293643,-900.0,0.0003658,30]
[394123351,1763310293680,-646.04,0.000366,30]
[394123352,1763310293715,-151.0,0.00036618,31]
[394123353,1763310293749,-151.0,0.00036618,31]
[394123354,1763310293784,-151.0,0.00036618,31]
[394123355,1763310293817,-151.0,0.00036618,31]
[394123356,1763310293852,-157.055438,0.00036618,31]
[394123357,1763310293887,-151.0,0.00036618,31]
[394123358,1763310293922,-151.0,0.00036618,31]
[394123359,1763310293961,-153.912312,0.00036618,31]
[394123360,1763310293995,-153.912312,0.00036618,31]
[394123361,1763310294028,-153.912312,0.00036618,31]
[394123362,1763310294061,-153.912312,0.00036618,31]
[394123363,1763310294094,-151.0,0.00036618,31]
[394123364,1763310294129,-177.911794,0.00036618,31]
[394123365,1763310294162,-177.911794,0.00036618,31]
[394123366,1763310294198,-177.911794,0.00036618,31]
[394123367,1763310294231,-206.146785,0.00036635,31]
[394123368,1763310294267,-206.146785,0.00036635,31]
[394123369,1763310294302,-151.0,0.00036635,31]
[394123370,1763310294336,-206.146785,0.00036635,31]
[394123371,1763310294368,-239.761031,0.00036635,31]
[394123372,1763310294399,-151.0,0.00036635,31]
[394123373,1763310294433,-277.335366,0.00036635,31]
[394123374,1763310294465,-239.761031,0.00036635,31]
[394123375,1763310294498,-206.146785,0.00036635,31]
[394123376,1763310294531,-239.761031,0.00036635,31]
[394123377,1763310294566,-239.761031,0.00036635,31]
[394123378,1763310294600,-151.0,0.00036635,31]
[394123379,1763310294632,-151.0,0.00036635,31]
[394123380,1763310294666,-154.916495,0.00036658,31]
[394123381,1763310294699,-734.090734,0.00036658,31]
[394123382,1763310294731,-734.090734,0.00036658,31]
[394123383,1763310294763,-151.0,0.00036658,31]
[394123384,1763310294795,-734.090734,0.00036658,31]
[394123385,1763310295001,-151.0,0.00036658,31]
[394123386,1763310295036,-734.090741,0.00036658,31]
[394123387,1763310295070,-151.0,0.00036658,31]
[394123388,1763310295103,-151.0,0.00036658,31]
[394123389,1763310295136,-151.0,0.00036658,31]
[394123390,1763310295172,-151.0,0.00036658,31]
[394123391,1763310295207,-151.0,0.00036658,31]
[394123392,1763310295241,-151.0,0.00036658,31]
[394123393,1763310295278,-151.0,0.00036658,31]
[394123394,1763310295315,-151.0,0.00036658,31]
[394123395,1763310295352,-151.0,0.00036658,31]
[394123396,1763310295387,-151.0,0.00036658,31]
[394123397,1763310295423,-690.36492,0.00036658,30]
[394123398,1763310295457,-297.850905,0.00036658,31]
[394123399,1763310295495,-151.0,0.00036658,31]
[394123400,1763310295532,-297.850905,0.00036658,31]
[394123401,1763310295569,-690.36492,0.00036658,30]
[394123402,1763310295604,-151.0,0.00036658,31]
[394123403,1763310295640,-297.850905,0.00036658,31]
[394123404,1763310295677,-690.36492,0.00036658,30]
[394123405,1763310295711,-151.0,0.00036658,31]
[394123406,1763310295746,-297.850903,0.00036658,31]
[394123407,1763310295778,-690.364921,0.00036658,30]
[394123408,1763310295809,-4415.995584,0.00036658,31]
[394123409,1763310295840,-4415.995584,0.00036658,31]
[394123410,1763310295872,-4415.995584,0.00036658,31]
[394123411,1763310295904,-4415.995584,0.00036658,31]
[394123412,1763310295938,-151.0,0.00036658,31]
[394123413,1763310295972,-151.0,0.00036658,31]
[394123414,1763310296006,-2236.04,0.000368,30]
[394123415,1763310296044,-151.0,0.00038,31]
[394123416,1763310296077,-151.0,0.00038,31]
[394123417,1763310296108,-188.455529,0.00038,31]
[394123418,1763310296138,-151.0,0.00038,31]
[394123419,1763310296172,-151.0,0.00038,31]
[394123420,1763310296205,-151.0,0.00038,31]
[394123421,1763310296238,-153.912312,0.00038,31]
[394123422,1763310296271,-153.912312,0.00038,31]
[394123423,1763310296302,-153.912312,0.00038,31]
[394123424,1763310296333,-153.912302,0.00038,31]
[394123425,1763310296365,-206.146785,0.00038,31]
[394123426,1763310296395,-206.146785,0.00038,31]
[394123427,1763310296425,-151.0,0.00038,31]
[394123428,1763310296456,-206.146785,0.00038,31]
[394123429,1763310296485,-239.761031,0.00038,31]
[394123430,1763310296515,-151.0,0.00038,31]
[394123431,1763310296547,-239.761031,0.00038,31]
[394123432,1763310296577,-206.146784,0.00038,31]
[394123433,1763310296610,-239.761031,0.00038,31]
[394123434,1763310296639,-177.911794,0.00038,31]
[394123435,1763310296672,-239.761035,0.00038,31]
[394123436,1763310296702,-177.911794,0.00038,31]
[394123437,1763310296731,-151.0,0.00038,31]
[394123438,1763310296760,-177.911794,0.00038,31]
[394123439,1763310296789,-151.0,0.00038,31]
[394123440,1763310296827,-170.20575878,0.00039672,30]
[394123441,1763310296862,-500.0,0.00040567,30]
[394123442,1763310296894,-1867.51,0.00041,30]
[394123443,1763310296926,-646.04,0.00041,30]
[394123444,1763310296955,-399.0,0.00041,90]
[394123445,1763310296985,-399.0,0.0004137,90]
[394123446,1763310297014,-704.62,0.00041445,30]
[394123447,1763310297044,-689.4,0.00041445,30]
[394123448,1763310297498,-190.0,0.00043,90]
[394123449,1763310297528,-399.0,0.00043151,90]
[394123450,1763310297560,-200.0,0.00043221,120]
[394123451,1763310297591,-150.0,0.00043427,30]
[394123452,1763310297622,-699.017696,0.00043427,30]
[394123453,1763310297653,-150.0,0.00043427,30]
[394123454,1763310297689,-4442.25584709,0.00043427,30]
[394123455,1763310297721,-150.0,0.00043427,30]
[394123456,1763310297752,-644.35418149,0.00043427,30]
[394123457,1763310297785,-150.0,0.00043427,30]
[394123458,1763310297817,-311.04393026,0.00043427,30]
[394123459,1763310297848,-108018.1997,0.00043444,30]
[394123460,1763310297883,-586.28502616,0.00043724,30]
[394123461,1763310297913,-516.29,0.000438,120]
[394123462,1763310297947,-190.0,0.00044913,90]
[394123463,1763310297976,-500.0,0.00045233,60]
[394123464,1763310298203,-399.0,0.00045308,90]
[394123465,1763310298235,-96136.1977,0.00045444,30]
[394123466,1763310298267,-150.0,0.00047328,120]
[394123467,1763310298301,-75612.7398,0.00047444,30]
[394123468,1763310298330,-500.0,0.00047671,60]
[394123469,1763310298359,-500.0,0.00047671,60]
[394123470,1763310298387,-500.0,0.00047671,60]
[394123471,1763310298418,-150.0,0.00047956,120]
[394123472,1763310298447,-513.90850126,0.00048,120]
[394123473,1763310298476,-399.0,0.00048329,90]
[394123474,1763310298508,-150.0,0.00048412,120]
[394123475,1763310298540,-217.78769241,0.00048545,30]
[394123476,1763310298569,-500.0,0.00048767,60]
[394123477,1763310298597,-500.0,0.00048767,60]
[394123478,1763310298625,-500.0,0.00048767,60]
[394123479,1763310298653,-217.78769241,0.00048875,30]
[394123480,1763310298685,-437470.66085449,0.00049,120]
[394123481,1763310298712,-969.33,0.00049,120]
[394123482,1763310298744,-1000000.0,0.00049,120]
[394123483,1763310298774,-907.53244582,0.00049004,120]
[394123484,1763310298804,-217.78769241,0.00049175,30]
[394123485,1763310298834,-500.0,0.00049266,120]
[394123486,1763310298864,-300.0,0.00049314,30]
[394123487,1763310298897,-600.0,0.00049314,30]
[394123488,1763310298929,-311.1,0.00049314,30]
[394123489,1763310298958,-600.0,0.00049314,30]
[394123490,1763310298988,-322.6107,0.00049314,30]
[394123491,1763310299017,-600.0,0.00049314,30]
[394123492,1763310299046,-334.5472959,0.00049314,30]
[394123493,1763310299076,-600.0,0.00049314,30]
[394123494,1763310299104,-346.92554585,0.00049314,30]
[394123495,1763310299133,-200.0,0.00049314,30]
[394123496,1763310299161,-600.0,0.00049314,30]